[Event "2026 European Womens Championship"]
[Site "Batumi, GE"]
[Date "2026.05.28"]
[Round "4"]
[White "Danielyan, Lilia"]
[Black "Gharibyan, Mane"]
[Result "0-1"]
[Board "79"]
[TimeControl "5400+30"]
[WhiteFideId "13319841"]
[BlackFideId "13306430"]
[WhiteElo "1728"]
[BlackElo "1776"]
[WhiteClock "0:00:35"]
[BlackClock "0:00:54"]
[Variant "Standard"]

1. c4 {[%clk 1:30:53]}  Nf6 {[%clk 1:30:51]} 2. g3 {[%clk 1:31:12]}  e6 {[%clk 1:26:53]} 3. Bg2 {[%clk 1:31:13]}  d5 {[%clk 1:27:19]}
4. Nf3 {[%clk 1:31:23]}  Be7 {[%clk 1:25:48]} 5. O-O {[%clk 1:31:20]}  O-O {[%clk 1:26:02]} 6. d4 {[%clk 1:30:37]}  b6 {[%clk 1:19:38]}
7. Nc3 {[%clk 1:29:20]}  Bb7 {[%clk 1:15:38]} 8. Ne5 {[%clk 1:28:09]}  c5 {[%clk 1:13:54]} 9. dxc5 {[%clk 1:26:08]}  Bxc5 {[%clk 1:08:36]}
10. Bg5 {[%clk 1:21:18]}  Be7 {[%clk 0:53:29]} 11. cxd5 {[%clk 1:07:34]}  exd5 {[%clk 0:31:51]} 12. Nc4 {[%clk 0:49:48]}  Nc6 {[%clk 0:20:36]}
13. Bxf6 {[%clk 0:38:52]}  dxc4 {[%clk 0:18:57]} 14. Bxe7 {[%clk 0:38:27]}  Qxe7 {[%clk 0:19:13]} 15. Qa4 {[%clk 0:34:07]}  Ne5 {[%clk 0:14:34]}
16. Nd5 {[%clk 0:32:40]}  Bxd5 {[%clk 0:10:12]} 17. Bxd5 {[%clk 0:32:09]}  Rac8 {[%clk 0:09:32]} 18. Rac1 {[%clk 0:28:54]}  Rc5 {[%clk 0:05:20]}
19. Qa3 {[%clk 0:17:09]}  Qd7 {[%clk 0:03:20]} 20. e4 {[%clk 0:07:35]}  Qh3 {[%clk 0:01:58]} 21. f3 {[%clk 0:05:48]}  Qh6 {[%clk 0:00:44]}
22. Qc3 {[%clk 0:04:54]}  Nd3 {[%clk 0:00:44]} 23. Rc2 {[%clk 0:04:48]}  Qe3+ {[%clk 0:00:38]} 24. Kg2 {[%clk 0:04:58]}  b5 {[%clk 0:00:47]}
25. Rd1 {[%clk 0:02:34]}  Rfc8 {[%clk 0:00:42]} 26. Qd2 {[%clk 0:01:27]}  Qxd2+ {[%clk 0:00:36]} 27. Rcxd2 {[%clk 0:01:55]}  b4 {[%clk 0:00:52]}
28. Bxc4 {[%clk 0:01:50]}  Rxc4 {[%clk 0:00:34]} 29. Rxd3 {[%clk 0:02:18]}  Rc2+ {[%clk 0:00:45]} 30. R1d2 {[%clk 0:02:39]}  g6 {[%clk 0:00:38]}
31. Kf2 {[%clk 0:02:09]}  Kg7 {[%clk 0:00:46]} 32. Ke3 {[%clk 0:02:04]}  a5 {[%clk 0:00:39]} 33. Rxc2 {[%clk 0:01:45]}  Rxc2 {[%clk 0:01:04]}
34. Rd2 {[%clk 0:02:08]}  Rc1 {[%clk 0:00:42]} 35. Kf4 {[%clk 0:01:13]}  Kf6 {[%clk 0:00:45]} 36. h4 {[%clk 0:01:14]}  Rc5 {[%clk 0:00:34]}
37. Rd6+ {[%clk 0:00:45]}  Ke7 {[%clk 0:00:48]} 38. Rd2 {[%clk 0:00:44]}  Ke6 {[%clk 0:00:55]} 39. Ke3 {[%clk 0:00:50]}  Ke5 {[%clk 0:00:35]}
40. f4+ {[%clk 0:00:33]}  Ke6 {[%clk 0:00:50]} 41. g4 {[%clk 0:29:17]}  Rc1 {[%clk 0:22:32]} 42. f5+ {[%clk 0:23:13]}  Ke7 {[%clk 0:22:24]}
43. Kf4 {[%clk 0:17:25]}  Rg1 {[%clk 0:13:38]} 44. h5 {[%clk 0:12:31]}  gxh5 {[%clk 0:11:22]} 45. gxh5 {[%clk 0:12:30]}  h6 {[%clk 0:06:39]}
46. Ke5 {[%clk 0:06:48]}  f6+ {[%clk 0:03:42]} 47. Kd5 {[%clk 0:06:58]}  Rc1 {[%clk 0:01:46]} 48. Rg2 {[%clk 0:04:26]}  Kf7 {[%clk 0:00:39]}
49. b3 {[%clk 0:01:13]}  Rd1+ {[%clk 0:00:38]} 50. Kc4 {[%clk 0:01:00]}  Re1 {[%clk 0:00:56]} 51. Kd3 {[%clk 0:00:51]}  Rh1 {[%clk 0:00:34]}
52. Rc2 {[%clk 0:00:59]}  a4 {[%clk 0:00:34]} 53. bxa4 {[%clk 0:01:02]}  Rxh5 {[%clk 0:00:37]} 54. Rc7+ {[%clk 0:01:10]}  Kg8 {[%clk 0:00:32]}
55. Kc4 {[%clk 0:01:02]}  Rh2 {[%clk 0:00:42]} 56. Kxb4 {[%clk 0:00:58]}  Rxa2 {[%clk 0:01:07]} 57. Kb5 {[%clk 0:00:37]}  Rb2+ {[%clk 0:00:43]}
58. Kc5 {[%clk 0:00:34]}  Ra2 {[%clk 0:01:00]} 59. Ra7 {[%clk 0:00:38]}  h5 {[%clk 0:01:08]} 60. Kd5 {[%clk 0:00:33]}  h4 {[%clk 0:00:51]}
61. Ke6 {[%clk 0:00:44]}  Re2 {[%clk 0:00:33]} 62. Kxf6 {[%clk 0:00:40]}  Rxe4 {[%clk 0:00:48]} 63. a5 {[%clk 0:00:34]}  h3 {[%clk 0:00:59]}
64. a6 {[%clk 0:00:33]}  h2 {[%clk 0:00:40]} 65. Ra8+ {[%clk 0:00:53]}  Kh7 {[%clk 0:01:03]} 66. a7 {[%clk 0:00:39]}  Ra4 {[%clk 0:01:03]}
67. Re8 {[%clk 0:00:31]}  h1=Q {[%clk 0:00:43]} 68. Re7+ {[%clk 0:00:35]}  Kh6 {[%clk 0:00:54]} 0-1

[Event "2026 European Womens Championship"]
[Site "Batumi, GE"]
[Date "2026.05.28"]
[Round "4"]
[White "Kedelidze, Aneta"]
[Black "Saltkhutsishvili, Sara"]
[Result "1-0"]
[Board "80"]
[TimeControl "5400+30"]
[WhiteFideId "13626191"]
[BlackFideId "13636995"]
[WhiteElo "1676"]
[BlackElo "1763"]
[WhiteClock "0:01:53"]
[BlackClock "0:01:12"]
[Variant "Standard"]

1. d4 {[%clk 1:30:56]}  d5 {[%clk 1:30:30]} 2. Nf3 {[%clk 1:31:12]}  Nf6 {[%clk 1:30:52]} 3. e3 {[%clk 1:31:38]}  e6 {[%clk 1:29:27]}
4. b3 {[%clk 1:31:56]}  Bd6 {[%clk 1:28:26]} 5. Bb2 {[%clk 1:32:08]}  O-O {[%clk 1:28:29]} 6. Bd3 {[%clk 1:32:14]}  Ne4 {[%clk 1:25:10]}
7. Nbd2 {[%clk 1:28:16]}  f5 {[%clk 1:22:35]} 8. Qe2 {[%clk 1:22:42]}  a5 {[%clk 1:17:28]} 9. Ne5 {[%clk 1:21:15]}  Bb4 {[%clk 1:12:24]}
10. Bc1 {[%clk 1:17:37]}  Bc3 {[%clk 1:00:31]} 11. Rb1 {[%clk 1:17:43]}  c5 {[%clk 1:00:33]} 12. Nef3 {[%clk 1:13:01]}  b6 {[%clk 0:50:49]}
13. Bb2 {[%clk 1:05:50]}  Ba6 {[%clk 0:45:42]} 14. a3 {[%clk 1:03:56]}  a4 {[%clk 0:39:13]} 15. Bxa6 {[%clk 0:49:22]}  Rxa6 {[%clk 0:37:23]}
16. Bc1 {[%clk 0:44:57]}  Qc8 {[%clk 0:27:44]} 17. O-O {[%clk 0:42:54]}  Ra7 {[%clk 0:25:53]} 18. bxa4 {[%clk 0:41:34]}  Nd7 {[%clk 0:23:26]}
19. Nb3 {[%clk 0:30:27]}  Rxa4 {[%clk 0:20:33]} 20. Rd1 {[%clk 0:21:01]}  Bb4 {[%clk 0:14:32]} 21. Bb2 {[%clk 0:09:49]}  Bxa3 {[%clk 0:13:56]}
22. Qe1 {[%clk 0:08:53]}  Bxb2 {[%clk 0:12:06]} 23. Rxb2 {[%clk 0:09:16]}  c4 {[%clk 0:10:06]} 24. Nc1 {[%clk 0:08:18]}  Qa6 {[%clk 0:08:23]}
25. Ne2 {[%clk 0:08:11]}  Ra2 {[%clk 0:07:36]} 26. Rdb1 {[%clk 0:06:56]}  Qa3 {[%clk 0:06:23]} 27. Rxa2 {[%clk 0:05:48]}  Qxa2 {[%clk 0:06:52]}
28. Qc1 {[%clk 0:05:34]}  Ra8 {[%clk 0:06:15]} 29. h4 {[%clk 0:03:54]}  h6 {[%clk 0:04:46]} 30. Nh2 {[%clk 0:00:45]}  Qa5 {[%clk 0:02:37]}
31. c3 {[%clk 0:00:34]}  Qa2 {[%clk 0:01:47]} 32. Qe1 {[%clk 0:00:33]}  Nd2 {[%clk 0:01:16]} 33. Rd1 {[%clk 0:00:43]}  Nb3 {[%clk 0:00:37]}
34. Nf3 {[%clk 0:00:35]}  Qb2 {[%clk 0:00:35]} 35. Nf4 {[%clk 0:00:36]}  Kf7 {[%clk 0:00:39]} 36. Rb1 {[%clk 0:00:52]}  Qc2 {[%clk 0:00:40]}
37. h5 {[%clk 0:01:09]}  Ra3 {[%clk 0:00:37]} 38. Ng6 {[%clk 0:00:40]}  Qa2 {[%clk 0:00:40]} 39. Nge5+ {[%clk 0:00:45]}  Nxe5 {[%clk 0:01:05]}
40. Nxe5+ {[%clk 0:01:12]}  Kg8 {[%clk 0:01:12]} 41. Rd1 {[%clk 0:13:22]}  Ra8 {[%clk 0:19:34]} 42. Kh2 {[%clk 0:09:05]}  Qa4 {[%clk 0:16:50]}
43. Qe2 {[%clk 0:05:58]}  Qe8 {[%clk 0:14:57]} 44. g3 {[%clk 0:01:38]}  Ra3 {[%clk 0:11:44]} 45. Rb1 {[%clk 0:00:41]}  Qa4 {[%clk 0:10:34]}
46. Rb2 {[%clk 0:00:51]}  Ra1 {[%clk 0:09:25]} 47. Kg2 {[%clk 0:01:01]}  Qa5 {[%clk 0:08:54]} 48. Rc2 {[%clk 0:01:04]}  Qa4 {[%clk 0:07:24]}
49. Rb2 {[%clk 0:00:59]}  Ra3 {[%clk 0:06:35]} 50. Rc2 {[%clk 0:00:40]}  Qa8 {[%clk 0:04:19]} 51. Rb2 {[%clk 0:00:58]}  b5 {[%clk 0:04:19]}
52. Qc2 {[%clk 0:00:55]}  Qa6 {[%clk 0:03:48]} 53. g4 {[%clk 0:00:58]}  Ra1 {[%clk 0:01:44]} 54. gxf5 {[%clk 0:00:44]}  Rc1 {[%clk 0:02:07]}
55. Ra2 {[%clk 0:01:06]}  Qb7 {[%clk 0:01:57]} 56. Qe2 {[%clk 0:00:40]}  exf5 {[%clk 0:01:12]} 57. Qf3 {[%clk 0:01:05]}  Qc8 {[%clk 0:01:10]}
58. Qxd5+ {[%clk 0:01:12]}  Kh7 {[%clk 0:01:13]} 59. Ra8 {[%clk 0:01:28]}  Qxa8 {[%clk 0:01:12]} 60. Qxa8 {[%clk 0:01:53]} 1-0

[Event "2026 European Womens Championship"]
[Site "Batumi, GE"]
[Date "2026.05.28"]
[Round "4"]
[White "Kalayci, Nino"]
[Black "Chanturia, Lika"]
[Result "1-0"]
[Board "81"]
[TimeControl "5400+30"]
[WhiteFideId "13603221"]
[BlackFideId "13618857"]
[WhiteElo "1755"]
[BlackElo "1649"]
[WhiteTitle "WCM"]
[WhiteClock "0:04:31"]
[BlackClock "0:03:20"]
[Variant "Standard"]

1. e4 {[%clk 1:29:00]}  c6 {[%clk 1:30:55]} 2. d4 {[%clk 1:29:25]}  d5 {[%clk 1:31:20]} 3. exd5 {[%clk 1:29:50]}  cxd5 {[%clk 1:31:46]}
4. c4 {[%clk 1:30:16]}  Nf6 {[%clk 1:32:02]} 5. Nc3 {[%clk 1:30:33]}  Nc6 {[%clk 1:32:16]} 6. Nf3 {[%clk 1:30:33]}  Bg4 {[%clk 1:32:05]}
7. Be3 {[%clk 1:23:24]}  e6 {[%clk 1:26:05]} 8. c5 {[%clk 1:15:38]}  Be7 {[%clk 1:20:15]} 9. Qa4 {[%clk 0:34:06]}  O-O {[%clk 1:12:05]}
10. Ne5 {[%clk 0:33:03]}  Nxe5 {[%clk 0:57:53]} 11. dxe5 {[%clk 0:33:24]}  Ne4 {[%clk 0:58:20]} 12. Nxe4 {[%clk 0:33:03]}  dxe4 {[%clk 0:58:44]}
13. Qxe4 {[%clk 0:31:23]}  Bf5 {[%clk 0:52:09]} 14. Qxb7 {[%clk 0:19:14]}  Qa5+ {[%clk 0:48:20]} 15. b4 {[%clk 0:18:05]}  Qa3 {[%clk 0:48:33]}
16. Rc1 {[%clk 0:10:15]}  Rfd8 {[%clk 0:41:28]} 17. Be2 {[%clk 0:08:22]}  Bf8 {[%clk 0:36:50]} 18. O-O {[%clk 0:07:23]}  Qxa2 {[%clk 0:23:58]}
19. Qa6 {[%clk 0:07:40]}  Qb2 {[%clk 0:22:56]} 20. Bf3 {[%clk 0:07:47]}  Rac8 {[%clk 0:17:15]} 21. c6 {[%clk 0:07:45]}  Bd3 {[%clk 0:13:26]}
22. Qxa7 {[%clk 0:06:39]}  Bxf1 {[%clk 0:13:50]} 23. Kxf1 {[%clk 0:02:13]}  Qxb4 {[%clk 0:08:26]} 24. Qb7 {[%clk 0:00:55]}  Qa3 {[%clk 0:02:18]}
25. c7 {[%clk 0:01:11]}  Re8 {[%clk 0:02:07]} 26. Bc6 {[%clk 0:01:02]}  Rxc7 {[%clk 0:01:04]} 27. Qxc7 {[%clk 0:01:24]}  Qa6+ {[%clk 0:01:20]}
28. Kg1 {[%clk 0:01:40]}  Rc8 {[%clk 0:01:28]} 29. Qb7 {[%clk 0:01:49]}  Qxb7 {[%clk 0:01:05]} 30. Bxb7 {[%clk 0:02:17]}  Rb8 {[%clk 0:01:12]}
31. Rc7 {[%clk 0:01:47]}  h6 {[%clk 0:01:10]} 32. f4 {[%clk 0:01:53]}  Rd8 {[%clk 0:01:02]} 33. Rc8 {[%clk 0:01:36]}  Rxc8 {[%clk 0:01:05]}
34. Bxc8 {[%clk 0:01:59]}  Bb4 {[%clk 0:01:06]} 35. Kf2 {[%clk 0:02:16]}  Kf8 {[%clk 0:01:32]} 36. Kf3 {[%clk 0:02:39]}  Ke7 {[%clk 0:01:41]}
37. Ke4 {[%clk 0:03:00]}  Ba3 {[%clk 0:01:49]} 38. Kd4 {[%clk 0:02:55]}  Kd8 {[%clk 0:02:06]} 39. Ba6 {[%clk 0:03:18]}  Kc7 {[%clk 0:02:23]}
40. Bb5 {[%clk 0:03:36]}  Kd8 {[%clk 0:02:34]} 41. Kc4 {[%clk 0:03:56]}  g6 {[%clk 0:02:14]} 42. Bc5 {[%clk 0:04:09]}  Bc1 {[%clk 0:02:32]}
43. g3 {[%clk 0:04:33]}  Bd2 {[%clk 0:02:47]} 44. Bf8 {[%clk 0:04:26]}  h5 {[%clk 0:03:07]} 45. Kc5 {[%clk 0:02:51]}  Be3+ {[%clk 0:03:21]}
46. Kd6 {[%clk 0:03:12]}  Bd2 {[%clk 0:02:41]} 47. Be7+ {[%clk 0:03:31]}  Kc8 {[%clk 0:03:05]} 48. Bd7+ {[%clk 0:03:49]}  Kb7 {[%clk 0:03:18]}
49. Be8 {[%clk 0:04:05]}  Bb4+ {[%clk 0:03:20]} 50. Kd7 {[%clk 0:04:31]} 1-0

[Event "2026 European Womens Championship"]
[Site "Batumi, GE"]
[Date "2026.05.28"]
[Round "4"]
[White "Kalyoncu, Beren"]
[Black "Casadevall Mainau, Iraida"]
[Result "1-0"]
[Board "82"]
[TimeControl "5400+30"]
[WhiteFideId "51608383"]
[BlackFideId "54543142"]
[WhiteElo "1840"]
[BlackElo "1729"]
[WhiteTitle "WCM"]
[WhiteClock "0:23:35"]
[BlackClock "1:30:30"]
[Variant "Standard"]

1. e4 {[%clk 1:30:30]}  e5 {[%clk 0:00:00]} 2. Nf3 {[%clk 1:30:25]}  Nc6 {[%clk 0:00:00]} 3. Bc4 {[%clk 1:30:10]}  Bc5 {[%clk 0:00:00]}
4. c3 {[%clk 1:30:04]}  Nf6 {[%clk 0:00:00]} 5. d4 {[%clk 1:30:00]}  exd4 {[%clk 0:00:00]} 6. e5 {[%clk 1:29:44]}  d5 {[%clk 0:00:00]}
7. Bb5 {[%clk 1:29:25]}  Ne4 {[%clk 0:00:00]} 8. cxd4 {[%clk 1:29:11]}  Be7 {[%clk 0:00:00]} 9. Nc3 {[%clk 1:24:02]}  O-O {[%clk 0:00:00]}
10. Qb3 {[%clk 1:08:59]}  Be6 {[%clk 0:00:00]} 11. O-O {[%clk 1:07:25]}  Na5 {[%clk 0:00:00]} 12. Qc2 {[%clk 1:04:56]}  Nxc3 {[%clk 0:00:00]}
13. Qxc3 {[%clk 0:59:47]}  Nc4 {[%clk 0:00:00]} 14. b3 {[%clk 0:56:50]}  Nb6 {[%clk 0:00:00]} 15. Bd3 {[%clk 0:54:32]}  Nd7 {[%clk 0:00:00]}
16. Be3 {[%clk 0:51:39]}  f6 {[%clk 0:00:00]} 17. Qc2 {[%clk 0:47:51]}  fxe5 {[%clk 0:00:00]} 18. Bxh7+ {[%clk 0:46:30]}  Kh8 {[%clk 0:00:00]}
19. Nxe5 {[%clk 0:45:43]}  Nxe5 {[%clk 0:00:00]} 20. dxe5 {[%clk 0:45:34]}  d4 {[%clk 0:00:00]} 21. Rad1 {[%clk 0:42:22]}  c5 {[%clk 0:00:00]}
22. Bc1 {[%clk 0:40:43]}  Qd7 {[%clk 0:00:00]} 23. f4 {[%clk 0:38:31]}  Bf5 {[%clk 0:00:00]} 24. Bxf5 {[%clk 0:38:18]}  Rxf5 {[%clk 0:00:00]}
25. g4 {[%clk 0:29:52]}  Rff8 {[%clk 0:00:00]} 26. Qg6 {[%clk 0:28:27]}  Qd5 {[%clk 0:00:00]} 27. Rd3 {[%clk 0:27:07]}  Kg8 {[%clk 0:00:00]}
28. Rh3 {[%clk 0:25:36]}  Rad8 {[%clk 0:00:00]} 29. e6 {[%clk 0:23:35]} 1-0

[Event "2026 European Womens Championship"]
[Site "Batumi, GE"]
[Date "2026.05.29"]
[Round "5"]
[White "Mirzoeva, Elmira"]
[Black "Hnatyshyn, Anastasiia"]
[Result "0-1"]
[Board "49"]
[TimeControl "5400+30"]
[WhiteFideId "4127951"]
[BlackFideId "14198339"]
[WhiteElo "2265"]
[BlackElo "2207"]
[WhiteTitle "WGM"]
[BlackTitle "WFM"]
[WhiteClock "0:00:45"]
[BlackClock "0:10:43"]
[Variant "Standard"]

1. e4 {[%clk 1:30:56]}  c5 {[%clk 1:30:56]} 2. Nc3 {[%clk 1:31:16]}  Nc6 {[%clk 1:29:46]} 3. g3 {[%clk 1:31:35]}  g6 {[%clk 1:30:01]}
4. Bg2 {[%clk 1:31:50]}  Bg7 {[%clk 1:30:26]} 5. d3 {[%clk 1:32:00]}  e6 {[%clk 1:30:24]} 6. f4 {[%clk 1:32:05]}  d6 {[%clk 1:30:38]}
7. Nf3 {[%clk 1:32:16]}  Nge7 {[%clk 1:30:51]} 8. h4 {[%clk 1:32:23]}  Bd7 {[%clk 1:15:51]} 9. h5 {[%clk 1:28:33]}  Qb6 {[%clk 1:11:20]}
10. h6 {[%clk 1:18:45]}  Bf8 {[%clk 1:11:28]} 11. e5 {[%clk 0:57:03]}  O-O-O {[%clk 1:00:51]} 12. Ne4 {[%clk 0:54:15]}  Nf5 {[%clk 0:57:58]}
13. g4 {[%clk 0:40:06]}  Nfd4 {[%clk 0:51:34]} 14. Nxd6+ {[%clk 0:31:26]}  Bxd6 {[%clk 0:51:46]} 15. exd6 {[%clk 0:31:54]}  Nxf3+ {[%clk 0:46:00]}
16. Qxf3 {[%clk 0:26:46]}  e5 {[%clk 0:39:11]} 17. O-O {[%clk 0:25:21]}  Rhe8 {[%clk 0:33:46]} 18. f5 {[%clk 0:18:08]}  gxf5 {[%clk 0:20:33]}
19. Bg5 {[%clk 0:16:02]}  f4 {[%clk 0:20:46]} 20. Bf6 {[%clk 0:08:07]}  Re6 {[%clk 0:18:27]} 21. g5 {[%clk 0:06:36]}  Rg8 {[%clk 0:18:51]}
22. Kh2 {[%clk 0:06:27]}  Rg6 {[%clk 0:17:58]} 23. Qd5 {[%clk 0:02:50]}  Nb4 {[%clk 0:11:00]} 24. Qc4 {[%clk 0:02:11]}  Qxd6 {[%clk 0:11:13]}
25. a3 {[%clk 0:01:06]}  Nc6 {[%clk 0:11:07]} 26. b4 {[%clk 0:01:29]}  f3 {[%clk 0:09:33]} 27. bxc5 {[%clk 0:01:25]}  Qc7 {[%clk 0:09:50]}
28. Bh3 {[%clk 0:00:59]}  e4+ {[%clk 0:10:06]} 29. Kh1 {[%clk 0:00:52]}  Qg3 {[%clk 0:10:24]} 30. Rxf3 {[%clk 0:00:50]}  exf3 {[%clk 0:10:33]}
31. Bf1 {[%clk 0:00:45]}  Rexf6 {[%clk 0:10:43]} 0-1

[Event "2026 European Womens Championship"]
[Site "Batumi, GE"]
[Date "2026.05.29"]
[Round "5"]
[White "Aydin, Gulenay"]
[Black "Salimova, Nurgyul"]
[Result "1-0"]
[Board "50"]
[TimeControl "5400+30"]
[WhiteFideId "34557431"]
[BlackFideId "2915138"]
[WhiteElo "2204"]
[BlackElo "2404"]
[WhiteTitle "WIM"]
[BlackTitle "IM"]
[WhiteClock "0:26:09"]
[BlackClock "0:04:32"]
[Variant "Standard"]

1. e4 {[%clk 1:28:14]}  c6 {[%clk 1:30:52]} 2. d4 {[%clk 1:28:12]}  d5 {[%clk 1:31:17]} 3. exd5 {[%clk 1:28:38]}  cxd5 {[%clk 1:31:42]}
4. Bd3 {[%clk 1:29:03]}  Nf6 {[%clk 1:31:43]} 5. c3 {[%clk 1:29:25]}  Bg4 {[%clk 1:30:57]} 6. Qb3 {[%clk 1:29:48]}  Qc7 {[%clk 1:31:09]}
7. h3 {[%clk 1:29:59]}  Bh5 {[%clk 1:30:58]} 8. g4 {[%clk 1:30:12]}  Bg6 {[%clk 1:31:20]} 9. Bxg6 {[%clk 1:30:38]}  hxg6 {[%clk 1:31:43]}
10. g5 {[%clk 1:31:03]}  Nfd7 {[%clk 1:32:02]} 11. Qxd5 {[%clk 1:31:20]}  Nc6 {[%clk 1:31:37]} 12. Ne2 {[%clk 1:30:55]}  e5 {[%clk 1:31:36]}
13. Be3 {[%clk 1:29:35]}  Nb6 {[%clk 1:31:01]} 14. Qf3 {[%clk 1:29:39]}  O-O-O {[%clk 1:28:44]} 15. Nd2 {[%clk 1:29:06]}  Kb8 {[%clk 1:09:38]}
16. Ne4 {[%clk 1:27:35]}  f5 {[%clk 1:04:59]} 17. gxf6 {[%clk 1:27:43]}  gxf6 {[%clk 1:05:20]} 18. O-O-O {[%clk 1:27:53]}  Be7 {[%clk 0:47:35]}
19. Nc5 {[%clk 0:57:47]}  Nc4 {[%clk 0:29:10]} 20. Ne6 {[%clk 0:42:00]}  Qa5 {[%clk 0:16:26]} 21. Nxd8 {[%clk 0:37:08]}  Qxa2 {[%clk 0:11:37]}
22. Nxc6+ {[%clk 0:37:17]}  bxc6 {[%clk 0:12:03]} 23. Rd2 {[%clk 0:24:12]}  Qa1+ {[%clk 0:06:48]} 24. Kc2 {[%clk 0:23:54]}  Qa4+ {[%clk 0:05:31]}
25. b3 {[%clk 0:19:53]}  Qa2+ {[%clk 0:05:02]} 26. Kd1 {[%clk 0:19:28]}  Qxb3+ {[%clk 0:04:30]} 27. Ke1 {[%clk 0:15:59]}  Nxd2 {[%clk 0:04:27]}
28. Bxd2 {[%clk 0:15:31]}  Qb1+ {[%clk 0:04:33]} 29. Bc1 {[%clk 0:14:12]}  Ba3 {[%clk 0:04:09]} 30. Kf1 {[%clk 0:08:58]}  Rh5 {[%clk 0:04:01]}
31. Kg2 {[%clk 0:08:02]}  Rf5 {[%clk 0:04:16]} 32. Qxc6 {[%clk 0:08:03]}  Bxc1 {[%clk 0:04:06]} 33. Rxc1 {[%clk 0:07:03]}  Rg5+ {[%clk 0:04:31]}
34. Kh2 {[%clk 0:04:22]}  Qf5 {[%clk 0:04:45]} 35. Rf1 {[%clk 0:03:57]}  Rh5 {[%clk 0:04:39]} 36. Qg2 {[%clk 0:04:00]}  Qd3 {[%clk 0:03:13]}
37. Ng3 {[%clk 0:03:24]}  Rh4 {[%clk 0:03:38]} 38. dxe5 {[%clk 0:03:07]}  fxe5 {[%clk 0:03:36]} 39. Qc6 {[%clk 0:02:45]}  g5 {[%clk 0:03:51]}
40. Qe8+ {[%clk 0:02:35]}  Kb7 {[%clk 0:04:17]} 41. Qe7+ {[%clk 0:01:35]}  Kc6 {[%clk 0:04:32]} 42. Qe6+ {[%clk 0:26:09]} 1-0

[Event "2026 European Womens Championship"]
[Site "Batumi, GE"]
[Date "2026.05.29"]
[Round "5"]
[White "Kiolbasa, Oliwia"]
[Black "Mammadzada, Gunay"]
[Result "1-0"]
[Board "51"]
[TimeControl "5400+30"]
[WhiteFideId "1154613"]
[BlackFideId "13403729"]
[WhiteElo "2397"]
[BlackElo "2374"]
[WhiteTitle "IM"]
[BlackTitle "IM"]
[WhiteClock "0:07:25"]
[BlackClock "0:10:29"]
[Variant "Standard"]

1. e4 {[%clk 1:27:14]}  c5 {[%clk 1:30:51]} 2. Nf3 {[%clk 1:27:36]}  d6 {[%clk 1:31:04]} 3. d4 {[%clk 1:27:59]}  cxd4 {[%clk 1:31:29]}
4. Nxd4 {[%clk 1:28:22]}  Nf6 {[%clk 1:31:23]} 5. Nc3 {[%clk 1:28:45]}  a6 {[%clk 1:31:45]} 6. Be2 {[%clk 1:28:58]}  e5 {[%clk 1:32:08]}
7. Nb3 {[%clk 1:29:23]}  Be7 {[%clk 1:32:26]} 8. Be3 {[%clk 1:29:23]}  Be6 {[%clk 1:31:51]} 9. f4 {[%clk 1:29:22]}  exf4 {[%clk 1:21:38]}
10. Bxf4 {[%clk 1:29:45]}  Nc6 {[%clk 1:22:04]} 11. Qd2 {[%clk 1:29:44]}  d5 {[%clk 1:11:30]} 12. exd5 {[%clk 1:29:35]}  Nxd5 {[%clk 1:10:48]}
13. Nxd5 {[%clk 1:29:57]}  Qxd5 {[%clk 1:11:11]} 14. O-O-O {[%clk 1:30:11]}  Qxd2+ {[%clk 1:05:51]} 15. Rxd2 {[%clk 1:30:32]}  Rd8 {[%clk 0:53:01]}
16. Rxd8+ {[%clk 1:26:32]}  Kxd8 {[%clk 0:51:45]} 17. Bf3 {[%clk 1:24:29]}  Kc8 {[%clk 0:46:23]} 18. Re1 {[%clk 1:12:24]}  Rd8 {[%clk 0:43:02]}
19. c3 {[%clk 1:04:25]}  Bf8 {[%clk 0:30:19]} 20. h4 {[%clk 0:58:09]}  g6 {[%clk 0:29:16]} 21. h5 {[%clk 0:54:07]}  gxh5 {[%clk 0:23:09]}
22. Bxh5 {[%clk 0:50:40]}  Bd6 {[%clk 0:23:32]} 23. Bxd6 {[%clk 0:48:14]}  Rxd6 {[%clk 0:23:56]} 24. Bf3 {[%clk 0:47:02]}  Kc7 {[%clk 0:09:33]}
25. Rh1 {[%clk 0:28:50]}  Ne5 {[%clk 0:04:16]} 26. Nd4 {[%clk 0:26:57]}  Nxf3 {[%clk 0:02:13]} 27. gxf3 {[%clk 0:26:16]}  Bd5 {[%clk 0:02:00]}
28. Rxh7 {[%clk 0:26:33]}  Rg6 {[%clk 0:02:27]} 29. b3 {[%clk 0:21:34]}  b5 {[%clk 0:02:34]} 30. a3 {[%clk 0:15:54]}  Rg1+ {[%clk 0:00:48]}
31. Kc2 {[%clk 0:12:30]}  Rf1 {[%clk 0:00:38]} 32. Rh6 {[%clk 0:08:49]}  Bxf3 {[%clk 0:00:31]} 33. Rxa6 {[%clk 0:09:13]}  Kb7 {[%clk 0:00:36]}
34. Rh6 {[%clk 0:06:14]}  Bd5 {[%clk 0:00:37]} 35. Rh5 {[%clk 0:05:38]}  Rf2+ {[%clk 0:00:40]} 36. Kd3 {[%clk 0:05:48]}  f5 {[%clk 0:00:58]}
37. Nxf5 {[%clk 0:03:55]}  Bxb3 {[%clk 0:01:21]} 38. Nd6+ {[%clk 0:03:55]}  Ka6 {[%clk 0:01:04]} 39. Nxb5 {[%clk 0:03:17]}  Bd1 {[%clk 0:01:29]}
40. Re5 {[%clk 0:01:37]}  Ra2 {[%clk 0:01:41]} 41. Kc4 {[%clk 0:18:04]}  Ka5 {[%clk 0:23:19]} 42. Re8 {[%clk 0:12:13]}  Bh5 {[%clk 0:20:33]}
43. Ra8+ {[%clk 0:11:23]}  Kb6 {[%clk 0:21:02]} 44. Kb3 {[%clk 0:09:37]}  Bf7+ {[%clk 0:17:14]} 45. c4 {[%clk 0:10:01]}  Rg2 {[%clk 0:16:40]}
46. a4 {[%clk 0:08:23]}  Rg4 {[%clk 0:10:29]} 47. a5+ {[%clk 0:07:25]} 1-0